[Event "Icelandic Team-ch Premier 2021-22"]
[Site "Reykjavik"]
[Date "2022.03.05"]
[Round "9.10"]
[White "Kjartansson, Gudmundur"]
[Black "Jensson, Einar Hjalti"]
[Result "1/2-1/2"]
[ECO "D10"]
[WhiteElo "2450"]
[BlackElo "2326"]
[Annotator "ChessBase"]
[PlyCount "77"]
[EventDate "2022.03.05"]
[EventType "team-tourn"]
[EventCountry "ISL"]
[SourceTitle "playchess.com"]
[Source "ChessBase"]
[SourceQuality "1"]
[TimeControl "5400+30"]

1. d4 {[%emt 0:00:15]} d5 {[%emt 0:00:19]} 2. c4 {[%emt 0:00:13]} c6 {[%emt 0:00:08]} 3. Nc3 {[%emt 0:00:15]} dxc4 {[%emt 0:00:04]} 4. e3 {[%emt 0:01:14]} b5 {[%emt 0:00:16]} 5. a4 {[%emt 0:00:19]} b4 {[%emt 0:00:05]} 6. Ne4 {[%emt 0:00:14]} Qd5 {[%emt 0:00:12]} 7. Nd2 {[%emt 0:00:24]} c3 {[%emt 0:08:58]} 8. bxc3 {[%emt 0:00:14]} bxc3 {[%emt 0:00:03]} 9. Nb1 {[%emt 0:00:11]} Qa5 {[%emt 0:05:07]} 10. Qc2 {[%emt 0:00:33]} Nf6 {[%emt 0:06:06]} 11. Qxc3 {[%emt 0:03:01]} Qxc3+ {[%emt 0:00:27]} 12. Nxc3 {[%emt 0:00:06]} e6 {[%emt 0:00:29]} 13. Nf3 {[%emt 0:02:07]} Bb4 {[%emt 0:01:49]} 14. Bd2 {[%emt 0:02:29]} a5 {[%emt 0:00:46]} 15. Bd3 {[%emt 0:01:27]} Ba6 {[%emt 0:01:13]} 16. Ke2 {[%emt 0:11:41]} Bxd3+ {[%emt 0:02:04]} 17. Kxd3 {[%emt 0:00:06]} Nbd7 {[%emt 0:00:13]} 18. Rhc1 {[%emt 0:01:16]} Ke7 {[%emt 0:03:54]} 19. Ne4 {[%emt 0:08:15]} Nxe4 {[%emt 0:04:54]} 20. Kxe4 {[%emt 0:02:11]} c5 {[%emt 0:04:46]} 21. Bxb4 {[%emt 0:05:20]} cxb4 {[%emt 0:02:24]} 22. Nd2 {[%emt 0:00:36]} Rhc8 {[%emt 0:27:42]} 23. Rxc8 {[%emt 0:21:10]} Rxc8 {[%emt 0:00:05]} 24. Nb3 {[%emt 0:00:08]} f5+ {[%emt 0:01:29]} 25. Kf3 {[%emt 0:00:14]} Ra8 {[%emt 0:08:40]} 26. Ke2 {[%emt 0:03:46]} e5 {[%emt 0:05:49]} 27. Kd3 {[%emt 0:01:38]} Kd6 {[%emt 0:04:00]} 28. Kc4 {[%emt 0:06:04]} exd4 {[%emt 0:02:01]} 29. Nxd4 {[%emt 0:00:57]} g6 {[%emt 0:06:32]} 30. Kb5 {[%emt 0:04:44]} Nf6 {[%emt 0:01:26]} 31. Rd1 {[%emt 0:10:41]} Nd5 {[%emt 0:00:05]} 32. Nb3 {[%emt 0:01:18]} g5 {[%emt 0:01:55]} 33. Nc5 {[%emt 0:09:00]} Ke5 {[%emt 0:00:36]} 34. Nd7+ {[%emt 0:01:03]} Ke6 {[%emt 0:00:17]} 35. Kc4 {[%emt 0:00:38]} Nc3 {[%emt 0:01:01]} 36. Nc5+ {[%emt 0:00:10]} Ke5 {[%emt 0:00:09]} 37. Nd7+ {[%emt 0:02:11]} Ke6 {[%emt 0:00:01]} 38. Nc5+ {[%emt 0:00:31]} Ke5 {[%emt 0:00:02]} 39. Nd7+ {[%emt 0:01:54]} 1/2-1/2

[Event "Icelandic Team-ch Premier 2021-22"]
[Site "Reykjavik"]
[Date "2022.03.05"]
[Round "9.11"]
[White "Einarsson, Halldor Gretar"]
[Black "Gretarsson, Helgi Ass"]
[Result "0-1"]
[ECO "D11"]
[WhiteElo "2207"]
[BlackElo "2467"]
[Annotator "ChessBase"]
[PlyCount "72"]
[EventDate "2022.03.05"]
[EventType "team-tourn"]
[EventCountry "ISL"]
[SourceTitle "playchess.com"]
[Source "ChessBase"]
[SourceQuality "1"]
[TimeControl "5400+30"]

1. d4 {[%emt 0:01:28]} d5 {[%emt 0:00:06]} 2. Nf3 {[%emt 0:00:18]} Nf6 {[%emt 0:02:12]} 3. g3 {[%emt 0:00:45]} c6 {[%emt 0:01:31]} 4. Bg2 {[%emt 0:00:57]} Bf5 {[%emt 0:01:30]} 5. O-O {[%emt 0:01:23]} e6 {[%emt 0:00:11]} 6. c4 {[%emt 0:00:57]} Nbd7 {[%emt 0:03:01]} 7. Qb3 {[%emt 0:02:45]} Qb6 {[%emt 0:01:49]} 8. c5 {[%emt 0:00:28]} Qa6 {[%emt 0:16:24]} 9. Nc3 {[%emt 0:06:12]} h6 {[%emt 0:00:31]} 10. Re1 {[%emt 0:00:29]} b6 {[%emt 0:02:42]} 11. Bf1 {[%emt 0:10:05]} Qc8 {[%emt 0:13:46]} 12. cxb6 {[%emt 0:04:07]} axb6 {[%emt 0:00:03]} 13. Nd2 {[%emt 0:01:03]} Be7 {[%emt 0:02:50]} 14. f3 {[%emt 0:08:32]} O-O {[%emt 0:04:50]} 15. e4 {[%emt 0:00:15]} Bh7 {[%emt 0:00:06]} 16. exd5 {[%emt 0:03:04]} cxd5 {[%emt 0:00:45]} 17. Bb5 {[%emt 0:00:54]} Nb8 {[%emt 0:01:44]} 18. Qd1 {[%emt 0:05:44]} Nc6 {[%emt 0:00:57]} 19. Nb3 {[%emt 0:00:12]} Qb7 {[%emt 0:11:05]} 20. Bf4 {[%emt 0:08:47]} Rfc8 {[%emt 0:00:08]} 21. Bd3 {[%emt 0:05:41]} Bxd3 {[%emt 0:01:05]} 22. Qxd3 {[%emt 0:00:06]} Bb4 {[%emt 0:05:24]} 23. Rec1 {[%emt 0:07:15]} Ne8 {[%emt 0:06:15]} 24. a3 {[%emt 0:02:40]} Bf8 {[%emt 0:02:46]} 25. Nb5 {[%emt 0:03:51]} Ra4 {[%emt 0:04:22]} 26. Rc3 {[%emt 0:10:57]} Rc4 {[%emt 0:00:25]} 27. Rac1 {[%emt 0:04:31]} Qa6 {[%emt 0:06:25]} 28. Na1 {[%emt 0:09:39]} Qxb5 {[%emt 0:02:37]} 29. b3 {[%emt 0:00:05]} Rxc3 {[%emt 0:00:11]} 30. Qxb5 {[%emt 0:00:52]} Rxc1+ {[%emt 0:00:11]} 31. Bxc1 {[%emt 0:00:05]} Nxd4 {[%emt 0:00:04]} 32. Qxb6 {[%emt 0:01:29]} Rxc1+ {[%emt 0:00:09]} 33. Kg2 {[%emt 0:00:06]} e5 {[%emt 0:00:25]} 34. a4 {[%emt 0:00:32]} Rxa1 {[%emt 0:00:14]} 35. a5 {[%emt 0:00:07]} Ra2+ {[%emt 0:00:49]} 36. Kh3 {[%emt 0:00:59]} Nxf3 {[%emt 0:01:13]} 0-1

[Event "Icelandic Team-ch Premier 2021-22"]
[Site "Reykjavik"]
[Date "2022.03.05"]
[Round "9.12"]
[White "Thorhallsson, Throstur"]
[Black "Ornolfsson, Magnus P."]
[Result "1-0"]
[ECO "A46"]
[WhiteElo "2414"]
[BlackElo "2163"]
[Annotator "ChessBase"]
[PlyCount "91"]
[EventDate "2022.03.05"]
[EventType "team-tourn"]
[EventCountry "ISL"]
[SourceTitle "playchess.com"]
[Source "ChessBase"]
[SourceQuality "1"]
[TimeControl "5400+30"]

1. d4 {[%emt 0:00:12]} Nf6 {[%emt 0:00:37]} 2. Nf3 {[%emt 0:00:58]} e6 {[%emt 0:00:27]} 3. g3 {[%emt 0:01:27]} b5 {[%emt 0:00:41]} 4. Bg2 {[%emt 0:00:33]} Bb7 {[%emt 0:00:07]} 5. O-O {[%emt 0:00:39]} Be7 {[%emt 0:00:38]} 6. Nbd2 {[%emt 0:02:52]} O-O {[%emt 0:00:56]} 7. c4 {[%emt 0:01:02]} b4 {[%emt 0:05:56]} 8. Qc2 {[%emt 0:03:37]} c5 {[%emt 0:03:29]} 9. e4 {[%emt 0:10:42]} cxd4 {[%emt 0:05:45]} 10. e5 {[%emt 0:03:28]} Ne8 {[%emt 0:01:57]} 11. Ng5 {[%emt 0:02:45]} Bxg5 {[%emt 0:01:00]} 12. Bxb7 {[%emt 0:00:05]} Nc6 {[%emt 0:00:52]} 13. Bxa8 {[%emt 0:03:17]} Qxa8 {[%emt 0:00:29]} 14. f4 {[%emt 0:02:30]} Be7 {[%emt 0:00:24]} 15. Nf3 {[%emt 0:00:19]} Bc5 {[%emt 0:03:45]} 16. Qd3 {[%emt 0:01:52]} f6 {[%emt 0:03:28]} 17. exf6 {[%emt 0:10:02]} Nxf6 {[%emt 0:01:19]} 18. Bd2 {[%emt 0:00:14]} a5 {[%emt 0:07:12]} 19. Rae1 {[%emt 0:02:17]} Qe8 {[%emt 0:10:02]} 20. Kg2 {[%emt 0:03:44]} h6 {[%emt 0:08:45]} 21. Re2 {[%emt 0:06:46]} Ng4 {[%emt 0:03:40]} 22. h3 {[%emt 0:01:00]} Ne3+ {[%emt 0:02:32]} 23. Bxe3 {[%emt 0:00:09]} dxe3 {[%emt 0:00:05]} 24. Rd1 {[%emt 0:01:16]} d6 {[%emt 0:02:01]} 25. Qe4 {[%emt 0:01:06]} a4 {[%emt 0:07:26]} 26. Rd3 {[%emt 0:06:32]} Rf6 {[%emt 0:10:45]} 27. Rd1 {[%emt 0:08:11]} Rf8 {[%emt 0:02:48]} 28. Rd3 {[%emt 0:09:13]} Rf6 {[%emt 0:00:31]} 29. Nh2 {[%emt 0:00:50]} e5 {[%emt 0:11:17]} 30. Ng4 {[%emt 0:00:43]} Re6 {[%emt 0:00:15]} 31. f5 {[%emt 0:01:25]} Re7 {[%emt 0:00:11]} 32. f6 {[%emt 0:04:31]} Rc7 {[%emt 0:01:45]} 33. fxg7 {[%emt 0:01:09]} Kxg7 {[%emt 0:00:24]} 34. Nxe3 {[%emt 0:00:22]} Ne7 {[%emt 0:01:51]} 35. b3 {[%emt 0:02:08]} axb3 {[%emt 0:00:56]} 36. axb3 {[%emt 0:00:05]} Ra7 {[%emt 0:00:45]} 37. h4 {[%emt 0:01:25]} Qg6 {[%emt 0:01:20]} 38. Qxg6+ {[%emt 0:02:28]} Kxg6 {[%emt 0:00:16]} 39. Kf3 {[%emt 0:01:14]} h5 {[%emt 0:01:11]} 40. Ke4 {[%emt 0:00:39]} Ra1 {[%emt 0:00:25]} 41. Red2 {[%emt 0:00:46]} Re1 {[%emt 0:01:14]} 42. Rxd6+ {[%emt 0:01:11]} Bxd6 {[%emt 0:00:07]} 43. Rxd6+ {[%emt 0:00:04]} Kf7 {[%emt 0:00:23]} 44. Rb6 {[%emt 0:00:32]} Rg1 {[%emt 0:00:20]} 45. Rxb4 {[%emt 0:00:17]} Rxg3 {[%emt 0:00:18]} 46. Rb7 {[%emt 0:00:08]} 1-0

[Event "Icelandic Team-ch Premier 2021-22"]
[Site "Reykjavik"]
[Date "2022.03.05"]
[Round "9.13"]
[White "Ingvason, Johann"]
[Black "Thorsteins, Karl"]
[Result "0-1"]
[ECO "B07"]
[WhiteElo "2183"]
[BlackElo "2403"]
[Annotator "ChessBase"]
[PlyCount "102"]
[EventDate "2022.03.05"]
[EventType "team-tourn"]
[EventCountry "ISL"]
[SourceTitle "playchess.com"]
[Source "ChessBase"]
[SourceQuality "1"]
[TimeControl "5400+30"]

1. e4 {[%emt 0:00:03]} d6 {[%emt 0:03:23]} 2. d4 {[%emt 0:00:08]} Nf6 {[%emt 0:00:06]} 3. Bd3 {[%emt 0:00:09]} e5 {[%emt 0:00:47]} 4. Ne2 {[%emt 0:00:19]} g6 {[%emt 0:02:27]} 5. d5 {[%emt 0:00:17]} Bg7 {[%emt 0:00:11]} 6. Ng3 {[%emt 0:00:19]} h5 {[%emt 0:01:51]} 7. c4 {[%emt 0:02:04]} Na6 {[%emt 0:01:47]} 8. Nc3 {[%emt 0:00:28]} c6 {[%emt 0:04:53]} 9. h3 {[%emt 0:06:00]} Nc5 {[%emt 0:10:05]} 10. Bc2 {[%emt 0:00:09]} a5 {[%emt 0:00:47]} 11. Be3 {[%emt 0:02:31]} cxd5 {[%emt 0:00:37]} 12. cxd5 {[%emt 0:00:00]} Bh6 {[%emt 0:12:03]} 13. Bxh6 {[%emt 0:13:13]} Rxh6 {[%emt 0:02:12]} 14. Qd2 {[%emt 0:00:11]} Rh8 {[%emt 0:00:22]} 15. f4 {[%emt 0:01:05]} h4 {[%emt 0:21:47]} 16. fxe5 {[%emt 0:15:58]} dxe5 {[%emt 0:04:23]} 17. Nge2 {[%emt 0:00:28]} b5 {[%emt 0:08:18]} 18. Nxb5 {[%emt 0:17:15]} Rb8 {[%emt 0:00:39]} 19. Nec3 {[%emt 0:01:23]} Nfxe4 {[%emt 0:01:47]} 20. Bxe4 {[%emt 0:01:59]} Nxe4 {[%emt 0:00:08]} 21. Nxe4 {[%emt 0:02:46]} Rxb5 {[%emt 0:00:07]} 22. O-O {[%emt 0:01:08]} Bf5 {[%emt 0:04:56]} 23. Nc3 {[%emt 0:00:23]} Rb4 {[%emt 0:01:13]} 24. Rae1 {[%emt 0:00:18]} f6 {[%emt 0:00:21]} 25. a3 {[%emt 0:04:28]} Qb6+ {[%emt 0:03:18]} 26. Rf2 {[%emt 0:00:29]} Rd4 {[%emt 0:00:14]} 27. Qe3 {[%emt 0:00:24]} Kf7 {[%emt 0:00:22]} 28. Ne2 {[%emt 0:04:58]} Rb4 {[%emt 0:00:17]} 29. Nc3 {[%emt 0:01:28]} Qxe3 {[%emt 0:01:15]} 30. Rxe3 {[%emt 0:00:04]} Rd4 {[%emt 0:00:13]} 31. Ree2 {[%emt 0:02:47]} Rd8 {[%emt 0:01:18]} 32. Rd2 {[%emt 0:00:53]} Bd3 {[%emt 0:00:54]} 33. Rf3 {[%emt 0:08:05]} Bc4 {[%emt 0:00:23]} 34. Rdf2 {[%emt 0:00:07]} f5 {[%emt 0:00:15]} 35. Re3 {[%emt 0:00:06]} Re8 {[%emt 0:02:40]} 36. Re4 {[%emt 0:03:56]} Kg7 {[%emt 0:00:40]} 37. Re1 {[%emt 0:01:33]} Bxd5 {[%emt 0:00:13]} 38. Nb5 {[%emt 0:00:14]} Rd3 {[%emt 0:00:43]} 39. Rc1 {[%emt 0:01:56]} Re7 {[%emt 0:01:02]} 40. Re2 {[%emt 0:00:41]} e4 {[%emt 0:00:19]} 41. Rc5 {[%emt 0:00:04]} Bb3 {[%emt 0:02:00]} 42. Nc3 {[%emt 0:00:27]} a4 {[%emt 0:00:13]} 43. Kf2 {[%emt 0:01:15]} Red7 {[%emt 0:01:11]} 44. Ra5 {[%emt 0:01:07]} R3d4 {[%emt 0:00:23]} 45. Ke3 {[%emt 0:02:43]} Bc4 {[%emt 0:01:29]} 46. Rf2 {[%emt 0:01:37]} Rd3+ {[%emt 0:00:41]} 47. Kf4 {[%emt 0:00:11]} Kf6 {[%emt 0:00:20]} 48. Nxe4+ {[%emt 0:00:43]} fxe4 {[%emt 0:00:08]} 49. Kxe4+ {[%emt 0:00:04]} Kg7 {[%emt 0:00:12]} 50. Rxa4 {[%emt 0:04:31]} Bb5 {[%emt 0:00:58]} 51. b3 {[%emt 0:02:03]} Bc6+ {[%emt 0:00:22]} 0-1

[Event "Icelandic Team-ch Premier 2021-22"]
[Site "Reykjavik"]
[Date "2022.03.05"]
[Round "9.14"]
[White "Jacobsen, Mikkel Manosri"]
[Black "Halldorsson, Gudmundur"]
[Result "1-0"]
[ECO "D30"]
[WhiteElo "2240"]
[BlackElo "2142"]
[Annotator "ChessBase"]
[PlyCount "65"]
[EventDate "2022.03.05"]
[EventType "team-tourn"]
[EventCountry "ISL"]
[SourceTitle "playchess.com"]
[Source "ChessBase"]
[SourceQuality "1"]
[TimeControl "5400+30"]

1. d4 {[%emt 0:00:04]} Nf6 {[%emt 0:00:21]} 2. Nf3 {[%emt 0:00:09]} d5 {[%emt 0:00:22]} 3. c4 {[%emt 0:00:07]} e6 {[%emt 0:00:45]} 4. e3 {[%emt 0:00:07]} a6 {[%emt 0:01:59]} 5. b3 {[%emt 0:00:05]} Nbd7 {[%emt 0:02:35]} 6. Bd3 {[%emt 0:00:19]} b6 {[%emt 0:00:40]} 7. O-O {[%emt 0:00:08]} Bb7 {[%emt 0:00:26]} 8. Bb2 {[%emt 0:00:17]} Bd6 {[%emt 0:00:31]} 9. Qe2 {[%emt 0:00:47]} O-O {[%emt 0:01:10]} 10. Rd1 {[%emt 0:02:03]} Qe7 {[%emt 0:08:25]} 11. Ne5 {[%emt 0:00:19]} Rfd8 {[%emt 0:04:39]} 12. Nd2 {[%emt 0:03:00]} Ne4 {[%emt 0:12:36]} 13. Nf1 {[%emt 0:00:28]} Nxe5 {[%emt 0:20:40]} 14. dxe5 {[%emt 0:00:32]} Ba3 {[%emt 0:00:00]} 15. cxd5 {[%emt 0:07:33]} Bxd5 {[%emt 0:03:50]} 16. Bxa3 {[%emt 0:00:39]} Qxa3 {[%emt 0:00:11]} 17. Qc2 {[%emt 0:00:33]} Nc5 {[%emt 0:04:26]} 18. Bxh7+ {[%emt 0:01:30]} Kf8 {[%emt 0:00:11]} 19. Ng3 {[%emt 0:04:30]} a5 {[%emt 0:03:15]} 20. Be4 {[%emt 0:03:39]} Nxe4 {[%emt 0:05:00]} 21. Nxe4 {[%emt 0:00:07]} Qe7 {[%emt 0:00:19]} 22. Nc3 {[%emt 0:06:43]} Bb7 {[%emt 0:01:39]} 23. Nb5 {[%emt 0:02:59]} c5 {[%emt 0:06:18]} 24. Nd6 {[%emt 0:06:31]} Bc6 {[%emt 0:01:05]} 25. f4 {[%emt 0:00:55]} Kg8 {[%emt 0:00:37]} 26. Rd2 {[%emt 0:01:47]} f6 {[%emt 0:07:02]} 27. exf6 {[%emt 0:03:56]} Qxf6 {[%emt 0:00:10]} 28. Rad1 {[%emt 0:01:01]} Bd5 {[%emt 0:08:57]} 29. Nc4 {[%emt 0:01:29]} Bxc4 {[%emt 0:04:32]} 30. Qxc4 {[%emt 0:00:36]} Kf8 {[%emt 0:00:34]} 31. Rxd8+ {[%emt 0:03:34]} Rxd8 {[%emt 0:00:08]} 32. Rxd8+ {[%emt 0:00:09]} Qxd8 {[%emt 0:00:05]} 33. Qxe6 {[%emt 0:00:16]} 1-0

[Event "Icelandic Team-ch Premier 2021-22"]
[Site "Reykjavik"]
[Date "2022.03.05"]
[Round "9.15"]
[White "Briem, Stephan"]
[Black "Johannesson, Ingvar Thor"]
[Result "1/2-1/2"]
[ECO "A15"]
[WhiteElo "2039"]
[BlackElo "2315"]
[Annotator "ChessBase"]
[PlyCount "33"]
[EventDate "2022.03.05"]
[EventType "team-tourn"]
[EventCountry "ISL"]
[SourceTitle "playchess.com"]
[Source "ChessBase"]
[SourceQuality "1"]
[TimeControl "5400+30"]

1. d4 {[%emt 0:00:06]} Nf6 {[%emt 0:00:11]} 2. Nf3 {[%emt 0:00:36]} g6 {[%emt 0:06:39]} 3. c4 {[%emt 0:01:14]} Bg7 {[%emt 0:00:34]} 4. e3 {[%emt 0:00:38]} O-O {[%emt 0:01:27]} 5. Be2 {[%emt 0:00:06]} b6 {[%emt 0:07:03]} 6. O-O {[%emt 0:01:40]} Bb7 {[%emt 0:00:09]} 7. b4 {[%emt 0:08:58]} d6 {[%emt 0:14:19]} 8. Bb2 {[%emt 0:03:30]} Nbd7 {[%emt 0:06:18]} 9. Nbd2 {[%emt 0:07:19]} Re8 {[%emt 0:28:20]} 10. a4 {[%emt 0:08:54]} e5 {[%emt 0:07:23]} 11. Nb3 {[%emt 0:06:42]} exd4 {[%emt 0:01:55]} 12. exd4 {[%emt 0:04:47]} Ne4 {[%emt 0:00:41]} 13. Qc2 {[%emt 0:01:59]} c5 {[%emt 0:11:41]} 14. bxc5 {[%emt 0:11:56]} dxc5 {[%emt 0:00:18]} 15. d5 {[%emt 0:01:51]} Bxb2 {[%emt 0:02:06]} 16. Qxb2 {[%emt 0:00:48]} Qf6 {[%emt 0:00:51]} 17. Qxf6 {[%emt 0:02:14]} 1/2-1/2

[Event "Icelandic Team-ch Premier 2021-22"]
[Site "Reykjavik"]
[Date "2022.03.05"]
[Round "9.16"]
[White "Omarsson, Dadi"]
[Black "Johannsson, Birkir Isak"]
[Result "0-1"]
[ECO "B80"]
[WhiteElo "2212"]
[BlackElo "2103"]
[Annotator "ChessBase"]
[PlyCount "68"]
[EventDate "2022.03.05"]
[EventType "team-tourn"]
[EventCountry "ISL"]
[SourceTitle "playchess.com"]
[Source "ChessBase"]
[SourceQuality "1"]
[TimeControl "5400+30"]

1. e4 {[%emt 0:00:04]} c5 {[%emt 0:01:54]} 2. Nf3 {[%emt 0:00:06]} d6 {[%emt 0:00:11]} 3. d4 {[%emt 0:00:04]} cxd4 {[%emt 0:00:07]} 4. Nxd4 {[%emt 0:00:03]} Nf6 {[%emt 0:00:10]} 5. Nc3 {[%emt 0:00:02]} a6 {[%emt 0:00:06]} 6. Be3 {[%emt 0:00:24]} e6 {[%emt 0:00:11]} 7. f3 {[%emt 0:00:05]} h5 {[%emt 0:00:29]} 8. Bc4 {[%emt 0:05:43]} Qc7 {[%emt 0:02:46]} 9. Bb3 {[%emt 0:08:24]} Nbd7 {[%emt 0:02:40]} 10. Bg5 {[%emt 0:09:52]} Nc5 {[%emt 0:05:32]} 11. Qe2 {[%emt 0:16:02]} Be7 {[%emt 0:08:29]} 12. f4 {[%emt 0:15:54]} b5 {[%emt 0:35:32]} 13. a3 {[%emt 0:16:04]} Bb7 {[%emt 0:05:29]} 14. f5 {[%emt 0:02:42]} Nxb3 {[%emt 0:17:35]} 15. cxb3 {[%emt 0:01:19]} Qc5 {[%emt 0:06:46]} 16. Be3 {[%emt 0:04:40]} Ng4 {[%emt 0:01:48]} 17. Bg1 {[%emt 0:01:47]} Qe5 {[%emt 0:01:58]} 18. fxe6 {[%emt 0:01:31]} fxe6 {[%emt 0:00:18]} 19. Nf3 {[%emt 0:00:15]} Qf4 {[%emt 0:01:33]} 20. Nxb5 {[%emt 0:08:38]} Rc8 {[%emt 0:01:35]} 21. Nc3 {[%emt 0:01:22]} O-O {[%emt 0:00:20]} 22. Bd4 {[%emt 0:00:41]} Nf6 {[%emt 0:03:12]} 23. Nd2 {[%emt 0:04:19]} Rf7 {[%emt 0:02:25]} 24. Be3 {[%emt 0:01:02]} Qg4 {[%emt 0:00:23]} 25. Qxg4 {[%emt 0:01:00]} Nxg4 {[%emt 0:00:03]} 26. Bd4 {[%emt 0:00:20]} Bg5 {[%emt 0:00:07]} 27. Nc4 {[%emt 0:00:36]} Rd8 {[%emt 0:00:50]} 28. Ke2 {[%emt 0:00:53]} d5 {[%emt 0:00:12]} 29. exd5 {[%emt 0:00:06]} exd5 {[%emt 0:00:07]} 30. Nd2 {[%emt 0:00:30]} Re8+ {[%emt 0:00:34]} 31. Kd1 {[%emt 0:00:47]} Nf2+ {[%emt 0:00:24]} 32. Bxf2 {[%emt 0:00:12]} Rxf2 {[%emt 0:00:01]} 33. Nf3 {[%emt 0:00:07]} d4 {[%emt 0:00:41]} 34. Nxg5 {[%emt 0:01:18]} dxc3 {[%emt 0:00:55]} 0-1

[Event "Icelandic Team-ch Premier 2021-22"]
[Site "Reykjavik"]
[Date "2022.03.05"]
[Round "9.17"]
[White "Gretarsson, Hjorvar Steinn"]
[Black "Hjartarson, Johann"]
[Result "0-1"]
[ECO "A20"]
[WhiteElo "2548"]
[BlackElo "2470"]
[Annotator "ChessBase"]
[PlyCount "108"]
[EventDate "2022.03.05"]
[EventType "team-tourn"]
[EventCountry "ISL"]
[SourceTitle "playchess.com"]
[Source "ChessBase"]
[SourceQuality "1"]
[TimeControl "5400+30"]

1. c4 {[%emt 0:00:55]} e5 {[%emt 0:02:22]} 2. g3 {[%emt 0:00:00]} Nf6 {[%emt 0:00:51]} 3. Bg2 {[%emt 0:00:00]} d5 {[%emt 0:00:24]} 4. cxd5 {[%emt 0:00:00]} Nxd5 {[%emt 0:00:08]} 5. Nf3 {[%emt 0:00:06]} Nc6 {[%emt 0:00:15]} 6. O-O {[%emt 0:00:26]} Nb6 {[%emt 0:03:05]} 7. b3 {[%emt 0:02:27]} Be7 {[%emt 0:01:05]} 8. Bb2 {[%emt 0:01:58]} f6 {[%emt 0:00:15]} 9. Nc3 {[%emt 0:01:37]} O-O {[%emt 0:00:29]} 10. Rc1 {[%emt 0:07:13]} a5 {[%emt 0:14:13]} 11. d3 {[%emt 0:07:12]} Be6 {[%emt 0:02:07]} 12. Nd2 {[%emt 0:06:50]} Qd7 {[%emt 0:00:52]} 13. Nc4 {[%emt 0:04:35]} Rfd8 {[%emt 0:02:45]} 14. Nxb6 {[%emt 0:10:24]} cxb6 {[%emt 0:00:22]} 15. Na4 {[%emt 0:02:11]} Ra6 {[%emt 0:01:09]} 16. Qc2 {[%emt 0:06:59]} Nb4 {[%emt 0:03:57]} 17. Qb1 {[%emt 0:04:52]} Bh3 {[%emt 0:06:22]} 18. Bxh3 {[%emt 0:02:18]} Qxh3 {[%emt 0:00:11]} 19. Rfd1 {[%emt 0:10:45]} b5 {[%emt 0:06:03]} 20. Nc5 {[%emt 0:03:32]} Bxc5 {[%emt 0:01:02]} 21. Rxc5 {[%emt 0:00:11]} f5 {[%emt 0:00:26]} 22. Bxe5 {[%emt 0:02:53]} Rh6 {[%emt 0:00:40]} 23. g4 {[%emt 0:05:11]} Qxg4+ {[%emt 0:01:27]} 24. Kf1 {[%emt 0:03:37]} f4 {[%emt 0:01:41]} 25. d4 {[%emt 0:02:14]} Rxh2 {[%emt 0:07:52]} 26. Qe4 {[%emt 0:00:09]} Qh4 {[%emt 0:03:05]} 27. Ke1 {[%emt 0:00:19]} Qxf2+ {[%emt 0:02:56]} 28. Kd2 {[%emt 0:00:02]} f3 {[%emt 0:03:49]} 29. Re1 {[%emt 0:04:30]} Nc6 {[%emt 0:02:59]} 30. Rd5 {[%emt 0:04:02]} Qxe2+ {[%emt 0:11:40]} 31. Rxe2 {[%emt 0:00:15]} Rxe2+ {[%emt 0:00:06]} 32. Qxe2 {[%emt 0:00:11]} fxe2 {[%emt 0:00:06]} 33. Rxd8+ {[%emt 0:03:02]} Nxd8 {[%emt 0:00:06]} 34. d5 {[%emt 0:00:33]} Nf7 {[%emt 0:02:48]} 35. Bc3 {[%emt 0:00:32]} a4 {[%emt 0:02:58]} 36. Kxe2 {[%emt 0:00:03]} Kf8 {[%emt 0:00:40]} 37. Ke3 {[%emt 0:00:05]} h5 {[%emt 0:01:21]} 38. Kf4 {[%emt 0:00:18]} g6 {[%emt 0:00:14]} 39. Bb4+ {[%emt 0:00:30]} Ke8 {[%emt 0:00:11]} 40. Bc5 {[%emt 0:00:07]} Kd7 {[%emt 0:00:10]} 41. Bb4 {[%emt 0:00:08]} b6 {[%emt 0:01:28]} 42. Ba3 {[%emt 0:00:08]} g5+ {[%emt 0:01:02]} 43. Kf5 {[%emt 0:00:06]} g4 {[%emt 0:00:08]} 44. Kf4 {[%emt 0:00:05]} Nd6 {[%emt 0:02:27]} 45. Bc1 {[%emt 0:01:27]} Ne8 {[%emt 0:02:49]} 46. Ke5 {[%emt 0:01:32]} h4 {[%emt 0:01:43]} 47. Bg5 {[%emt 0:00:05]} h3 {[%emt 0:00:14]} 48. Bf4 {[%emt 0:00:04]} Nd6 {[%emt 0:01:53]} 49. Bh2 {[%emt 0:00:05]} axb3 {[%emt 0:01:31]} 50. axb3 {[%emt 0:00:05]} b4 {[%emt 0:00:28]} 51. Kf4 {[%emt 0:01:25]} Nb7 {[%emt 0:00:12]} 52. Kxg4 {[%emt 0:00:08]} Nc5 {[%emt 0:00:10]} 53. Kxh3 {[%emt 0:01:17]} Nxb3 {[%emt 0:00:08]} 54. Bg1 {[%emt 0:00:35]} Nc5 {[%emt 0:00:09]} 0-1

[Event "Icelandic Team-ch Premier 2021-22"]
[Site "Reykjavik"]
[Date "2022.03.05"]
[Round "9.18"]
[White "Pakleza, Zbigniew"]
[Black "Stefansson, Hannes"]
[Result "1/2-1/2"]
[ECO "A11"]
[WhiteElo "2500"]
[BlackElo "2520"]
[Annotator "ChessBase"]
[PlyCount "25"]
[EventDate "2022.03.05"]
[EventType "team-tourn"]
[EventCountry "ISL"]
[SourceTitle "playchess.com"]
[Source "ChessBase"]
[SourceQuality "1"]
[TimeControl "5400+30"]

1. Nf3 {[%emt 0:00:02]} Nf6 {[%emt 0:00:14]} 2. g3 {[%emt 0:00:18]} d5 {[%emt 0:01:21]} 3. Bg2 {[%emt 0:00:04]} g6 {[%emt 0:01:17]} 4. c4 {[%emt 0:01:24]} c6 {[%emt 0:02:39]} 5. b3 {[%emt 0:00:38]} Bg7 {[%emt 0:00:10]} 6. Bb2 {[%emt 0:00:02]} O-O {[%emt 0:00:10]} 7. O-O {[%emt 0:00:06]} b6 {[%emt 0:00:24]} 8. d4 {[%emt 0:00:56]} Bb7 {[%emt 0:02:08]} 9. Nc3 {[%emt 0:00:12]} Nbd7 {[%emt 0:01:09]} 10. Rc1 {[%emt 0:06:36]} Rc8 {[%emt 0:03:22]} 11. e3 {[%emt 0:04:59]} e6 {[%emt 0:01:05]} 12. Qe2 {[%emt 0:00:50]} Ne4 {[%emt 0:03:09]} 13. Rfd1 {[%emt 0:09:52]} 1/2-1/2